Cogmind - Beta 15 @@@ ROGUE MODE // 2025.08.23 @ 06:11:11 Player: shapeshifter Result: Destroyed by YN-B5F(R) with Subdweller Machine Gun Performance ------------- Evolutions (0) 0 Regions Visited (3) 600 Robots Destroyed (21) 105 Value Destroyed (379) 379 Prototype IDs (11) 220 Alien Tech Used (0) 0 Bonus (0) 0 TOTAL SCORE: 1304 Bonus ------- None Cogmind --------- Core Integrity 0/250 Matter 115/300 Energy 91/100 System Corruption 0% Temperature Cool (0) Movement Core (50) Location -10/Subcaves Parts ------- > --- POWER (1) -------- (None) > --- PROPULSION (2) --- (None) > --- UTILITY (2) ------ (None) > --- WEAPON (2) ------- (None) > --- INVENTORY (5) ---- Scrap Shield Tower Shield Peak State ------------ > --- POWER ------------ Ion Engine > --- PROPULSION ------- Light Treads Light Treads > --- UTILITY ---------- Small Storage Unit Seismic Detector > --- WEAPON ----------- Subdweller Machine Gun Subdweller Machine Gun > --- INVENTORY -------- Compact Wheel Compact Wheel Scrap Shield Tower Shield Hacking Suite Grenade Launcher [Rating: 12] Favorites ----------- Power Ion Engine Engine Ion Engine Propulsion Light Treads Treads Light Treads Wheel Subdweller Monowheel Utility Small Storage Unit Device Seismic Detector Storage Small Storage Unit Weapon EM Pulse Gun Energy Gun EM Pulse Gun Ballistic Gun Subdweller Machine Gun Launcher Grenade Launcher Build | -11 -10 -10 -10 ------- Run | Yrd Mat Min Sub Slots Evolved . | . . . . Power . | . . . . Propulsion . | . . . . Utility . | . . . . Weapon . | . . . . Parts Attached 16 | 8 3 . 5 Power 1 | 1 . . . Engine 1 | 1 . . . Core . | . . . . Reactor . | . . . . Propulsion 5 | 3 . . 2 Treads 2 | 2 . . . Leg . | . . . . Wheel 3 | 1 . . 2 Hover . | . . . . Flight . | . . . . Utility 3 | 2 1 . . Device 2 | 1 1 . . Storage 1 | 1 . . . Processor . | . . . . Hackware . | . . . . Protection . | . . . . Artifact . | . . . . Weapon 7 | 2 2 . 3 Energy Gun 3 | 2 1 . . Energy Cannon . | . . . . Ballistic Gun 2 | . . . 2 Ballistic Cannon . | . . . . Launcher 2 | . 1 . 1 Special Weapon . | . . . . Impact Weapon . | . . . . Slashing Weapon . | . . . . Piercing Weapon . | . . . . Special Melee Weapon . | . . . . Unidentified Prototypes . | . . . . Parts Lost 12 | . 2 . 10 Power 1 | . . . 1 Propulsion 4 | . . . 4 Utility 2 | . 1 . 1 Weapon 5 | . 1 . 4 Highest Loss Streak 7 | . 1 . 7 To Critical Strikes . | . . . . Average Backups 6 | 3 6 8 6 Power . | . 1 1 . Propulsion 1 | 1 2 2 1 Utility 1 | . 1 2 2 Weapon 1 | . 1 3 1 Tool/Special . | . . . . Unused Backups 8 | . . . 8 Power 1 | . . . 1 Propulsion . | . . . . Utility 4 | . . . 4 Weapon 3 | . . . 3 Tool/Special . | . . . . Average Slot Usage (%) 96 | . 98 100 95 Engine 13 | . 14 14 13 Treads 25 | . 28 28 23 Wheel 1 | . . . 2 Device 13 | . 13 14 13 Storage 14 | . 14 14 14 Energy Gun 12 | . 25 24 3 Ballistic Gun 7 | . . . 13 Launcher 5 | . 2 3 8 Peak Build Rating 12 | 7 8 8 12 Average Rating 8 | 4 7 8 10 On Entrance 5 | . 7 8 8 Naked Turns 1 | . . . 1 Heaviest Build 19 | 15 16 16 19 Greatest Support 40 | 40 40 40 40 Greatest Overweight (x) . | . . . . Average Overweight (x) . | . . . . Largest Inventory Capacity 8 | 8 8 8 8 Average Capacity 7 | 6 8 8 7 Most Carried 8 | 5 8 8 8 Average Carried 7 | 3 6 8 7 Final Capacity 8 | 8 8 8 5 Final Carried 8 | 4 8 8 4 Class Distribution -------------------- 100% | Mutant Dominant Class ---------------- Mutant | -10/Materials Mutant | -10/Mines Mutant | -10/Subcaves Resources | -11 -10 -10 -10 ----------- Run | Yrd Mat Min Sub Matter Collected 442 | 280 55 27 80 Remotely . | . . . . Salvage Created 496 | 76 266 60 94 Parts 43 | 12 24 2 5 Haulers Intercepted 2 | . 2 . . Recyclers Shooed 3 | 1 2 . . Parts Field Recycled . | . . . . Retrieved Matter . | . . . . Parts Self-Destructed 20 | . . . 20 Prevented . | . . . . Kills | -11 -10 -10 -10 ------- Run | Yrd Mat Min Sub Combat Hostiles Destroyed 13 | . 7 2 4 Guns 8 | . 5 . 3 AOE 5 | . 2 2 1 Classes Destroyed 8 | 1 4 1 2 Tunneler 3 | 3 . . . Hauler 2 | . 2 . . Operator 2 | . 2 . . Watcher 1 | . 1 . . Swarmer 8 | . 7 . 1 Grunt 2 | . . 2 . Sentry 1 | . . . 1 Subdweller 2 | . . . 2 Best Kill Streak 4 | 2 4 2 1 Combat Bots Only 3 | . 3 2 1 Max Kills in Single Turn 2 | 1 2 1 1 Gunslinging . | . . . . Exploded 2 | . 2 1 1 Melee . | . . . . Uniques/NPCs Destroyed . | . . . . Combat | -11 -10 -10 -10 -------- Run | Yrd Mat Min Sub Hostile Shots Fired 82 | . 26 4 52 Missed 19 | . 5 3 11 Hits 63 | . 21 1 41 Projectile 63 | . 21 1 41 Critical Strikes 1 | . 1 . . Damage Taken 1234 | . 214 16 1004 Core 252 | . 34 . 218 Absorbed by Shields . | . . . . Core Remaining (%) 100 | 100 . . . Volleys Fired 59 | 5 21 3 30 Largest 2 | 2 2 2 2 Hottest 80 | 80 80 70 60 Shots Fired 100 | 10 41 6 43 Gun 81 | 10 40 3 28 Cannon . | . . . . Launcher 19 | . 1 3 15 Special . | . . . . Kinetic 31 | . . . 31 Thermal 5 | . 5 . . Explosive 16 | . 1 3 12 Electromagnetic 48 | 10 35 3 . Robot Hit Streak 9 | 4 3 3 9 Robot Miss Streak 6 | 2 3 1 6 Penetration Max . | . . . . Secondary Targets 2 | . 2 . . Max Gunslinging Chain 1 | . 1 . . Shots Hit Robots 54 | 6 20 5 23 Core Hits 28 | 4 15 3 6 Critical Kills . | . . . . Critical Parts Destroyed . | . . . . Critical Strikes 2 | 1 1 . . Corrupt 2 | 1 1 . . Melee Attacks . | . . . . Impact . | . . . . Slashing . | . . . . Piercing . | . . . . Sneak Attacks . | . . . . Combat Hostiles . | . . . . Follow-up Attacks . | . . . . Damage Inflicted 1713 | 81 526 167 939 Guns 739 | 81 299 26 333 Cannons . | . . . . Explosions 974 | . 227 141 606 Melee . | . . . . Ramming . | . . . . Kinetic 601 | . . . 601 Thermal 247 | . 247 . . Explosive 501 | . 22 141 338 Electromagnetic 364 | 81 257 26 . Impact . | . . . . Slashing . | . . . . Piercing . | . . . . Highest Corruption . | . . . . Average Corruption . | . . . . Corruption Purged . | . . . . Corruption Blocked . | . . . . Overload Shots . | . . . . Overflow Damage 84 | . 26 . 58 Projectiles . | . . . . Explosions 84 | . 26 . 58 Melee . | . . . . Knockbacks . | . . . . Impact . | . . . . Kinetic . | . . . . Secondary . | . . . . Self-Inflicted Damage 175 | . 51 . 124 Shots 7 | . 2 . 5 Rammed . | . . . . Targets Rammed . | . . . . Kicked . | . . . . Crushed . | . . . . Highest Temperature 72 | 54 72 36 . Average Temperature 28 | 23 30 23 . Received Heat Transfer 171 | . . 9 162 Siege Activations . | . . . . Martial Activations . | . . . . Shielding Activations . | . . . . Robots Disrupted . | . . . . Combat Hostiles . | . . . . Robots Corrupted . | . . . . Combat Hostiles . | . . . . Parts Fried . | . . . . Impact Corruptions . | . . . . Robots Melted . | . . . . Combat Hostiles . | . . . . Parts Melted . | . . . . Heat Transferred 250 | . 250 . . Parts Sabotaged . | . . . . Parts Stolen . | . . . . Parts Stripped . | . . . . Power Chain Reactions 4 | . 4 . . Alert | -11 -10 -10 -10 ------- Run | Yrd Mat Min Sub Maximum Alert Level . | . . . . Low Security (%) 100 | 100 100 100 . Level 1 . | . . . . Level 2 . | . . . . Level 3 . | . . . . Level 4 . | . . . . Level 5 . | . . . . High Security . | . . . . Max Security . | . . . . Peak Influence 121 | 5 121 56 . Initial 12 | . . 12 . Average 32 | 1 66 9 . Influence Increases 436 | 15 255 66 100 Destroy 0b10 Robot/C 220 | . 140 40 40 Destroy 0b10 Robot/NC 40 | 15 25 . . Destroy Leader 36 | . 26 10 . Successful Hack 16 | . 16 . . Disable Machine 30 | . 30 . . Destroy Structure 34 | . 18 16 . Lose Combat Pursuer 60 | . . . 60 Influence Decreases 436 | 15 222 91 108 Entered New Map 26 | . . 21 5 Time Decay 338 | 15 202 70 51 Lost Part 72 | . 20 . 52 Squads Dispatched . | . . . . Investigation . | . . . . Extermination . | . . . . Reinforcement . | . . . . Assault . | . . . . Garrison . | . . . . Intercept . | . . . . Searches Triggered . | . . . . Construction Impeded . | . . . . Haulers Reinforced . | . . . . Active Scanning Responses . | . . . . Cargo Convoy Interrupts . | . . . . Stealth | -11 -10 -10 -10 --------- Run | Yrd Mat Min Sub Distress Signals 1 | . 1 . . Communications Jammed . | . . . . Distress Signals . | . . . . Times Spotted 29 | . 14 2 13 Peak Tracking Total 7 | . 4 2 7 Tactical Retreats 1 | . . . 1 Traps | -11 -10 -10 -10 ------- Run | Yrd Mat Min Sub Traps Triggered . | . . . . Indirectly . | . . . . Trap Hack Attempts . | . . . . Triggered . | . . . . Disarmed . | . . . . Reprogrammed . | . . . . Reused . | . . . . Traps Extracted . | . . . . Installed . | . . . . Triggered . | . . . . Machines | -11 -10 -10 -10 ---------- Run | Yrd Mat Min Sub Machines Disabled 3 | . 2 . 1 Max in Single Turn 2 | . 2 . 1 Machines Repaired . | . . . . Machines Dismantled . | . . . . Machines Sabotaged . | . . . . Overloaded Fab Kills . | . . . . Hacking | -11 -10 -10 -10 --------- Run | Yrd Mat Min Sub Machines Accessed 6 | . 5 . 1 Terminals 5 | . 5 . . Fabricators . | . . . . Repair Stations . | . . . . Recycling Units . | . . . . Scanalyzers . | . . . . Garrison Access . | . . . . Total Hacks 16 | . 15 . 1 Successful 9 | . 8 . 1 Failed 7 | . 7 . . Catastrophic 2 | . 2 . . Database Lockouts . | . . . . Manual 5 | . 5 . . Terminals 15 | . 15 . . Fabricators . | . . . . Repair Stations . | . . . . Recycling Units . | . . . . Scanalyzers . | . . . . Garrison Access . | . . . . Terminal Hacks 6 | . 5 . 1 Branch Access Points 1 | . 1 . . Surveillance Status 1 | . 1 . . Transport Status 1 | . 1 . . Hauler Manifests 1 | . 1 . . Registered Components 1 | . 1 . . Proto ID Catalog 1 | . . . 1 Fabricator Hacks . | . . . . Repair Station Hacks . | . . . . Recycling Unit Hacks . | . . . . Scanalyzer . | . . . . Garrison Access Hacks . | . . . . Unauthorized Hacks 3 | . 3 . . Terminals 3 | . 3 . . Botnet 3 | . 3 . . Fabricators . | . . . . Repair Stations . | . . . . Recycling Units . | . . . . Scanalyzers . | . . . . Garrison Access . | . . . . Data Cores Recovered 2 | . 2 . . Used . | . . . . Hacking Detections 5 | . 5 . . Full Trace Events . | . . . . Feedback Events . | . . . . Feedback Blocked . | . . . . Robot Schematics Acquired . | . . . . Robots Built . | . . . . Authchips . | . . . . Time . | . . . . Total Robot Build Rating . | . . . . Part Schematics Acquired . | . . . . Parts Built . | . . . . Authchips . | . . . . Time . | . . . . Total Part Build Rating . | . . . . Parts Repaired . | . . . . Time . | . . . . Parts Recycled . | . . . . Recycled Matter . | . . . . Retrieved Matter . | . . . . Retrieved Components . | . . . . Parts Scanalyzed . | . . . . Part Schematics Acquired . | . . . . Parts Damaged . | . . . . Bothacking | -11 -10 -10 -10 ------------ Run | Yrd Mat Min Sub Used RIF Installer . | . . . . Robots Hacked . | . . . . Non-combat . | . . . . Combat . | . . . . Robot Hacks Applied . | . . . . Relay Couplers Released . | . . . . Fabnet Peak Effective % . | . . . . Robots Rewired . | . . . . Allies Hacked . | . . . . Hacks Repelled . | . . . . Allies | -11 -10 -10 -10 -------- Run | Yrd Mat Min Sub Total Allies . | . . . . Largest Group . | . . . . Highest-Rated Group . | . . . . Highest-Rated Ally . | . . . . Total Orders . | . . . . Ally Attacks . | . . . . Total Damage . | . . . . Kills . | . . . . Allies Corrupted . | . . . . Allies Melted . | . . . . Intel | -11 -10 -10 -10 ------- Run | Yrd Mat Min Sub Active Infowar (turns) 2231 | 17 438 507 1269 Seismic 2231 | 17 438 507 1269 Robot Analysis Total . | . . . . Derelict Logs Recovered 2 | . . 1 1 Drone Launches . | . . . . Drone Recoveries . | . . . . Exploration | -11 -10 -10 -10 ------------- Run | Yrd Mat Min Sub Turns Passed 2384 | 127 471 507 1279 Spaces Moved 1420 | 80 245 311 784 Core 32 | 30 . . 2 Treads 1233 | 50 245 311 627 Legs . | . . . . Wheels 155 | . . . 155 Hover . | . . . . Flight . | . . . . Fastest Speed 50 | 50 160 160 50 Average Speed 152 | 118 160 160 149 Slowest Speed 160 | 160 160 160 160 Overloaded Moves . | . . . . Propulsion Burnouts . | . . . . Robots Hopped . | . . . . Potential Cave-ins 1 | . . . 1 Cave-ins Triggered . | . . . . Exploration Rate (%) 36 | 4 45 46 52 Regions Visited 3 Branch Regions 2 Pre-discovered Areas 2 | . . . 2 Known Exits Taken 1 | . 1 . . Unknown Exits Taken 2 | 1 . 1 . Scrap Searched 5 | . . 1 4 Spaces Dug 6 | . . . 6 Terrain Destroyed 119 | . 17 28 74 Melee . | . . . . Projectile . | . . . . AOE 119 | . 17 28 74 Terrain Rammed . | . . . . Walls Destroyed . | . . . . Machines Disabled . | . . . . Actions | -11 -10 -10 -10 --------- Run | Yrd Mat Min Sub Total 1547 | 101 282 314 850 Wait 17 | . 6 . 11 Move 1417 | 79 244 310 784 Hop . | . . . . Pick Up 23 | 9 6 . 8 Fast Attach 2 | 2 . . . Attach 11 | 5 2 . 4 Detach . | . . . . Swap 7 | 1 3 1 2 Drop 11 | . . . 11 Fire 59 | 5 21 3 30 Melee . | . . . . Ram . | . . . . Kick . | . . . . Crush . | . . . . Escape Stasis . | . . . . Rewire . | . . . . Trap . | . . . . Miscellaneous . | . . . . Route ------- -11/Scrapyard -10/Materials (discovered 3 exits: [*Mat x2] / *Min) -10/Mines (discovered 2 exits: [*Mat] / *Sub) -10/Subcaves (discovered 1 exit: [*Mat]) History --------- Turn | Location | Event 7 | -11/Scrapyard | Discovered new exit (range 14) 128 | -11/Scrapyard | Entered Materials 206 | -10/Materials | Identified exit to Mines 240 | -10/Materials | Discovered new exit (range 14) 303 | -10/Materials | Build established: Mutant 323 | -10/Materials | Discovered new exit (range 8) 599 | -10/Materials | Entered Mines 812 | -10/Mines | Discovered new exit (range 14) 1055 | -10/Mines | Discovered new exit (range 6) 1106 | -10/Mines | Entered Subcaves 1111 | -10/Subcaves | Shifting Twisted Machinery released Flamer 1125 | -10/Subcaves | Learned location of Zion (-6) 1125 | -10/Subcaves | Met a Zionite searching for "candidates" 1423 | -10/Subcaves | Visited 4L-MR0's lab 1443 | -10/Subcaves | Found Tower Shield 1631 | -10/Subcaves | Discovered new exit (range 8) 1643 | -10/Subcaves | Disturbed a concealed Subdweller 1967 | -10/Subcaves | A swath of the cavern ceiling suddenly collapsed 2171 | -10/Subcaves | Core integrity fell below 50% 2382 | -10/Subcaves | Core integrity fell below 20% 2385 | -10/Subcaves | Destroyed by YN-B5F(R) with Subdweller Machine Gun Last Messages --------------- 02172_ TO-M9I(R) affixes Scrap Shield Fragment to Scrap Shield. 02181_ Subatomizers dissect the Sub. Monowheel. 02184_ TO-M9I(R) destroyed. 02194_ The unstable cave ceiling collapses. 02343_ Machine disabled. 02345_ Grenade Launcher destroyed. 02346_ The unstable cave ceiling collapses. 02351_ S-10 Pest destroyed. 02373_ Ion Engine destroyed. 02373_ Destroyed Ion Engine. 02373_ Destroyed Sub. Monowheel. 02375_ Seismic Detector destroyed. 02375_ Lgt. Treads destroyed. 02378_ U4-MR6(R): "NAT20!" 02378_ The unstable cave ceiling collapses. 02379_ Sub. Shrapnel Launcher destroyed. 02381_ Flight Unit fries itself beyond repair. 02383_ Sub. Monowheel destroyed. 02384_ Dropped Sml. Storage Unit. Map ----- +----------------------------------------------------+ | ?????????????????????????????????????????????????? | | ?????????????????????????????????????????????????? | | ##???? ##????????????????????????????????????????? | | ???? ????????????????????????????????????????? | | ???? ????????????????????????????????????????? | | ???? ????????????????????????????????????????? | | ##?### ##??????????????????#???????????????????? | | ### ##????????????????# ??????? ???????????? | | ?# #####???????????? #????? ??????????? | | #?? # ????????????? #????# ???????????? | | ???? ?????????????? #???? #???????????? | | #???? ??????#%&?????? #??? #???????????? | | #????? #???????#& ????? ##?# ????????????? | | #?????? #?????### #????# ## ?????????????? | | ######## #?????" ???# ??????????????? | | ## # #?##?# ???# ???????????????? | | ## ### ### ?????# ##???????? | | #??? "# #????# #???????? | | # # #??????? "* #### #???????? | | ######### #??????????#%[ #????????? | | ???????# ##??????????#= #?????????? | | ?????### #######??????#### % ##?????????? | | #???## ##?## ####??## ## ###"" #??????????? | | ##### #### """ "#### ; %;##??? #??????????? | | " ### "" ;; ; #?????????????????? | | " "" @ ; #?????????????????? | | " # # " R ! ; ##????????????????? | | # ### ##&& "" ##""" #?????????? | | # ##?# # R """ #?????????? | | ###??## ## R """ #??????????? | | ??????## "" #??????????? | | ????#### # ; ;# "" ##??????????? | | #??## # ###### ;;# ####### #???????????? | | #??# # #???# ####?????? ??????????? | | #### ###??## #?????????""" ?????????? | | ## ####### #?????????? ?????????? | | # ## ###???????????????????????? | | ###???????????????????????? | | ## ## ##??????????????????????? | | ### #### ##?????????????????????? | | ## ######### #?????????????????????? | | ### ### #### #?????????????????????? | | ###### ### #### #????????????????????? | | #???#### ##? #????????????????????? | | #??????## #### #?# #????????????????????? | | # #???????## #??#######??###????????????????????? | | ?##????????####??????????????????????????????????? | | ?????????????????????????????????????????????????? | | ?????????????????????????????????????????????????? | | ?????????????????????????????????????????????????? | +----------------------------------------------------+ Best States ------------- Heat Dissipation 25 Energy Generation 10 Energy Capacity 250 Matter Stores 300 Matter Capacity 300 Sight Range 16 Terrain Scan Density 10 Evasion (%) 50 Recoil Reduction 2 Item Schematics ----------------- None Robot Schematics ------------------ None Fabricated ------------ Nothing Repaired ---------- Nothing Alien Tech Used ----------------- None Achievements -------------- None Challenges ------------ None Game ------ Seed RainbowSmartbombRipteeth Manual? 0 Play Time 00:12:54 Cumulative 186.2 hours Start 2025.08.23 @ 05:51:49 End 2025.08.23 @ 06:11:11 Sessions 3 Manual Loads 0 Difficulty Rogue Special Mode None Game No. 291 Rogue 291 Adventurer 0 Explorer 0 Win Type - Total 4 Types 3/0/1/0/0/0/0/0/0/0 Lore% 79 Gallery% 74 Achievement% 55 Wizard Run 0 Options --------- Layout 1 ASCII 0 Keyboard 0 Movement Mouse Keybinds 0 Fullscreen 1 Font 24/Smallcaps Map View 50x40 Zoom Use 0% Tactical HUD 1 Map Filters NONE Filters NONE Steam 1 RUN: 0660f442-90fb-40d8-8426-4b393e5a9174